[Event "FIDE Open Sachove Univerzity QCC"]
[Site "Ceske Budejovice"]
[Date "2020.07.03"]
[Round "3.24"]
[White "Chmelik, Benedikt"]
[Black "Svadlenka, Dominik"]
[Result "0-1"]
[ECO "B13"]
[WhiteElo "1571"]
[BlackElo "1350"]
[Annotator "NA"]
[PlyCount "86"]
[EventDate "2020.07.01"]
[EventType "swiss"]
[EventCountry "CZE"]
[SourceTitle "playchess.com"]
[Source "ChessBase"]
[SourceQuality "1"]
[TimeControl "40/5400+30:1800+30"]

1. e4 {[%emt 0:00:00]} c6 {[%emt 0:00:00]} 2. d4 {[%emt 0:00:00]} d5 {[%emt 0:00:00]} 3. exd5 {[%emt 0:00:17]} cxd5 {[%emt 0:00:02]} 4. Nf3 {[%emt 0:00:15]} Nc6 {[%emt 0:00:25]} 5. Bd3 {[%emt 0:00:24]} Bg4 {[%emt 0:00:16]} 6. O-O {[%emt 0:00:29]} Bxf3 {[%emt 0:01:24]} 7. Qxf3 {[%emt 0:00:43]} Nxd4 {[%emt 0:00:25]} 8. Qg3 {[%emt 0:00:18]} Nf6 {[%emt 0:05:44]} 9. Be3 {[%emt 0:00:13]} Nc6 {[%emt 0:00:34]} 10. Nd2 {[%emt 0:00:48]} e6 {[%emt 0:02:40]} 11. a3 {[%emt 0:01:16]} h6 {[%emt 0:09:38]} 12. f4 {[%emt 0:02:10]} h5 {[%emt 0:03:23]} 13. Nf3 {[%emt 0:02:11]} Ng4 {[%emt 0:01:54]} 14. Bd2 {[%emt 0:00:27]} Bc5+ {[%emt 0:00:26]} 15. Kh1 {[%emt 0:00:03]} Qb6 {[%emt 0:01:29]} 16. Be1 {[%emt 0:02:30]} Qxb2 {[%emt 0:01:24]} 17. Bd2 {[%emt 0:01:36]} Nf2+ {[%emt 0:00:37]} 18. Rxf2 {[%emt 0:01:56]} Bxf2 {[%emt 0:00:41]} 19. Qxf2 {[%emt 0:00:10]} Qxa1+ {[%emt 0:00:08]} 20. Ng1 {[%emt 0:00:08]} Qd4 {[%emt 0:01:01]} 21. Be3 {[%emt 0:00:43]} Qf6 {[%emt 0:02:57]} 22. Bb5 {[%emt 0:01:23]} O-O {[%emt 0:01:55]} 23. Qg3 {[%emt 0:01:03]} Ne7 {[%emt 0:01:15]} 24. Qh3 {[%emt 0:04:51]} Nf5 {[%emt 0:02:18]} 25. Bd2 {[%emt 0:00:57]} Nd6 {[%emt 0:00:52]} 26. Bd3 {[%emt 0:00:09]} Ne4 {[%emt 0:02:07]} 27. Be1 {[%emt 0:00:37]} Nc5 {[%emt 0:02:22]} 28. Be2 {[%emt 0:00:41]} Rac8 {[%emt 0:02:33]} 29. Qxh5 {[%emt 0:00:34]} Rfd8 {[%emt 0:05:16]} 30. Nf3 {[%emt 0:00:16]} Qg6 {[%emt 0:02:04]} 31. Qh4 {[%emt 0:00:22]} Qh6 {[%emt 0:06:49]} 32. Qg4 {[%emt 0:00:37]} f5 {[%emt 0:00:26]} 33. Qg5 {[%emt 0:00:56]} Qxg5 {[%emt 0:00:13]} 34. Nxg5 {[%emt 0:00:04]} Nd7 {[%emt 0:02:11]} 35. Nxe6 {[%emt 0:00:23]} Re8 {[%emt 0:00:14]} 36. Nd4 {[%emt 0:00:08]} Rxe2 {[%emt 0:00:17]} 37. Nxe2 {[%emt 0:00:03]} Re8 {[%emt 0:00:06]} 38. Kg1 {[%emt 0:00:32]} Rxe2 {[%emt 0:00:10]} 39. Kf1 {[%emt 0:00:18]} Rxc2 {[%emt 0:00:13]} 40. h3 {[%emt 0:00:32]} Nf6 {[%emt 0:00:18]} 41. Bf2 {[%emt 0:30:36]} a6 {[%emt 0:30:59]} 42. Bd4 {[%emt 0:00:26]} Nh5 {[%emt 0:00:30]} 43. Be5 {[%emt 0:00:10]} d4 {[%emt 0:01:19]} 0-1

[Event "FIDE Open Sachove Univerzity QCC"]
[Site "Ceske Budejovice"]
[Date "2020.07.03"]
[Round "3.25"]
[White "Barta, David"]
[Black "Klimes, Roman"]
[Result "1-0"]
[ECO "D77"]
[WhiteElo "1541"]
[BlackElo "1349"]
[Annotator "NA"]
[PlyCount "69"]
[EventDate "2020.07.01"]
[EventType "swiss"]
[EventCountry "CZE"]
[SourceTitle "playchess.com"]
[Source "ChessBase"]
[SourceQuality "1"]
[TimeControl "40/5400+30:1800+30"]

1. d4 {[%emt 0:00:00]} d5 {[%emt 0:00:11]} 2. Nf3 {[%emt 0:00:00]} g6 {[%emt 0:02:06]} 3. g3 {[%emt 0:00:03]} Bg7 {[%emt 0:00:46]} 4. Bg2 {[%emt 0:00:09]} Nf6 {[%emt 0:00:32]} 5. O-O {[%emt 0:00:10]} O-O {[%emt 0:01:07]} 6. Nbd2 {[%emt 0:00:09]} Nc6 {[%emt 0:03:12]} 7. c4 {[%emt 0:01:55]} dxc4 {[%emt 0:02:58]} 8. Nxc4 {[%emt 0:00:11]} Bg4 {[%emt 0:03:02]} 9. Be3 {[%emt 0:02:34]} Nd7 {[%emt 0:14:26]} 10. Rc1 {[%emt 0:00:51]} Nb6 {[%emt 0:00:31]} 11. Nce5 {[%emt 0:01:34]} Bxf3 {[%emt 0:06:54]} 12. Nxf3 {[%emt 0:00:16]} Rc8 {[%emt 0:03:22]} 13. Qd2 {[%emt 0:01:27]} Re8 {[%emt 0:04:47]} 14. Rfd1 {[%emt 0:00:59]} e6 {[%emt 0:01:49]} 15. Bf4 {[%emt 0:04:20]} Re7 {[%emt 0:04:09]} 16. Ne5 {[%emt 0:02:51]} Nxe5 {[%emt 0:03:25]} 17. Bxe5 {[%emt 0:00:21]} Bxe5 {[%emt 0:04:13]} 18. dxe5 {[%emt 0:00:12]} Rd7 {[%emt 0:00:22]} 19. Qc2 {[%emt 0:01:40]} Nd5 {[%emt 0:05:16]} 20. Rd4 {[%emt 0:05:04]} c5 {[%emt 0:02:31]} 21. Rc4 {[%emt 0:02:25]} Nb4 {[%emt 0:01:01]} 22. Rxb4 {[%emt 0:03:18]} cxb4 {[%emt 0:09:36]} 23. Qxc8 {[%emt 0:00:09]} Rd1+ {[%emt 0:00:32]} 24. Bf1 {[%emt 0:00:04]} Qxc8 {[%emt 0:00:31]} 25. Rxc8+ {[%emt 0:00:06]} Kg7 {[%emt 0:01:20]} 26. Rc7 {[%emt 0:00:02]} Rd2 {[%emt 0:00:59]} 27. Rxb7 {[%emt 0:00:07]} Rxb2 {[%emt 0:00:02]} 28. Rxa7 {[%emt 0:00:07]} b3 {[%emt 0:00:47]} 29. axb3 {[%emt 0:00:06]} Rxb3 {[%emt 0:00:01]} 30. f4 {[%emt 0:00:29]} h6 {[%emt 0:03:11]} 31. Bh3 {[%emt 0:00:31]} Rb6 {[%emt 0:00:43]} 32. Re7 {[%emt 0:00:26]} Kf8 {[%emt 0:00:17]} 33. Ra7 {[%emt 0:00:18]} Kg7 {[%emt 0:02:10]} 34. Kf2 {[%emt 0:00:21]} Rb8 {[%emt 0:01:30]} 35. Bxe6 {[%emt 0:00:29]} 1-0

[Event "FIDE Open Sachove Univerzity QCC"]
[Site "Ceske Budejovice"]
[Date "2020.07.03"]
[Round "3.26"]
[White "Trcka, Bohdan"]
[Black "Dobsa, Emma"]
[Result "0-1"]
[ECO "C20"]
[WhiteElo "1528"]
[BlackElo "1345"]
[Annotator "NA"]
[PlyCount "120"]
[EventDate "2020.07.01"]
[EventType "swiss"]
[EventCountry "CZE"]
[SourceTitle "playchess.com"]
[Source "ChessBase"]
[SourceQuality "1"]
[TimeControl "40/5400+30:1800+30"]

1. e4 {[%emt 0:38:15]} e5 {[%emt 0:00:00]} 2. Be2 {[%emt 0:00:09]} Nf6 {[%emt 0:00:00]} 3. d3 {[%emt 0:00:06]} Bc5 {[%emt 0:00:00]} 4. g4 {[%emt 0:00:17]} d5 {[%emt 0:00:03]} 5. g5 {[%emt 0:00:04]} Ng8 {[%emt 0:01:22]} 6. h4 {[%emt 0:00:23]} Be6 {[%emt 0:01:42]} 7. Bf3 {[%emt 0:00:20]} Nc6 {[%emt 0:01:14]} 8. c3 {[%emt 0:00:40]} h6 {[%emt 0:03:35]} 9. b4 {[%emt 0:00:21]} Be7 {[%emt 0:01:58]} 10. exd5 {[%emt 0:00:18]} Bxd5 {[%emt 0:00:10]} 11. Bxd5 {[%emt 0:00:24]} Qxd5 {[%emt 0:00:11]} 12. Qf3 {[%emt 0:00:13]} O-O-O {[%emt 0:01:56]} 13. Qxd5 {[%emt 0:00:44]} Rxd5 {[%emt 0:00:14]} 14. Rh3 {[%emt 0:00:30]} hxg5 {[%emt 0:02:05]} 15. b5 {[%emt 0:02:17]} Rxb5 {[%emt 0:01:08]} 16. Bxg5 {[%emt 0:00:20]} Bxg5 {[%emt 0:03:13]} 17. hxg5 {[%emt 0:00:00]} Rxh3 {[%emt 0:00:30]} 18. Nxh3 {[%emt 0:00:04]} Nge7 {[%emt 0:00:30]} 19. Nd2 {[%emt 0:00:44]} Ng6 {[%emt 0:01:18]} 20. a4 {[%emt 0:01:27]} Rc5 {[%emt 0:00:45]} 21. Ne4 {[%emt 0:01:03]} Rd5 {[%emt 0:00:26]} 22. Kd2 {[%emt 0:01:33]} Nf4 {[%emt 0:00:49]} 23. Nxf4 {[%emt 0:00:10]} exf4 {[%emt 0:00:09]} 24. Rh1 {[%emt 0:00:30]} Ne5 {[%emt 0:00:48]} 25. Rh8+ {[%emt 0:00:23]} Kd7 {[%emt 0:00:29]} 26. d4 {[%emt 0:00:51]} Nf3+ {[%emt 0:01:08]} 27. Kc2 {[%emt 0:00:17]} Nxg5 {[%emt 0:00:45]} 28. Nc5+ {[%emt 0:00:29]} Kc6 {[%emt 0:00:47]} 29. Rb8 {[%emt 0:00:09]} b6 {[%emt 0:02:11]} 30. Na6 {[%emt 0:00:20]} Ra5 {[%emt 0:01:36]} 31. Nb4+ {[%emt 0:00:18]} Kd7 {[%emt 0:00:30]} 32. Kb3 {[%emt 0:00:41]} Ne4 {[%emt 0:01:42]} 33. Rg8 {[%emt 0:00:35]} g6 {[%emt 0:01:44]} 34. Nd3 {[%emt 0:01:00]} Rh5 {[%emt 0:03:58]} 35. Ne5+ {[%emt 0:00:26]} Ke7 {[%emt 0:02:55]} 36. Rc8 {[%emt 0:01:03]} Nxf2 {[%emt 0:01:13]} 37. Rxc7+ {[%emt 0:00:07]} Ke8 {[%emt 0:00:22]} 38. Nxf7 {[%emt 0:00:42]} Nd3 {[%emt 0:01:32]} 39. Nd6+ {[%emt 0:00:36]} Kd8 {[%emt 0:01:08]} 40. Rxa7 {[%emt 0:00:16]} f3 {[%emt 0:00:57]} 41. Nc4 {[%emt 0:31:27]} f2 {[%emt 0:32:51]} 42. Rf7 {[%emt 0:00:23]} Rh1 {[%emt 0:08:32]} 43. Nd2 {[%emt 0:00:42]} g5 {[%emt 0:02:40]} 44. Kc4 {[%emt 0:01:11]} Nf4 {[%emt 0:01:22]} 45. Rg7 {[%emt 0:03:35]} Rg1 {[%emt 0:01:41]} 46. d5 {[%emt 0:00:29]} Rd1 {[%emt 0:00:55]} 47. Rg8+ {[%emt 0:00:43]} Kd7 {[%emt 0:00:42]} 48. Rg7+ {[%emt 0:00:12]} Ke8 {[%emt 0:00:25]} 49. Rxg5 {[%emt 0:03:13]} Rxd2 {[%emt 0:01:55]} 50. Re5+ {[%emt 0:00:12]} Kd7 {[%emt 0:00:40]} 51. Kb5 {[%emt 0:00:42]} Rxd5+ {[%emt 0:00:41]} 52. Rxd5+ {[%emt 0:00:26]} Nxd5 {[%emt 0:00:06]} 53. c4 {[%emt 0:00:06]} f1=Q {[%emt 0:00:13]} 54. a5 {[%emt 0:00:11]} bxa5 {[%emt 0:00:53]} 55. Kxa5 {[%emt 0:00:05]} Qa1+ {[%emt 0:00:17]} 56. Kb5 {[%emt 0:00:05]} Qb2+ {[%emt 0:00:12]} 57. Kc5 {[%emt 0:00:11]} Qb7 {[%emt 0:02:03]} 58. cxd5 {[%emt 0:00:11]} Qc7+ {[%emt 0:00:40]} 59. Kd4 {[%emt 0:00:27]} Kd6 {[%emt 0:00:13]} 60. Ke4 {[%emt 0:00:10]} Qc5 {[%emt 0:00:28]} 0-1

[Event "FIDE Open Sachove Univerzity QCC"]
[Site "Ceske Budejovice"]
[Date "2020.07.03"]
[Round "3.27"]
[White "Kotleska, Roman"]
[Black "Vojtek, Pavel"]
[Result "1-0"]
[ECO "D03"]
[WhiteElo "1521"]
[BlackElo "1292"]
[Annotator "NA"]
[PlyCount "83"]
[EventDate "2020.07.01"]
[EventType "swiss"]
[EventCountry "CZE"]
[SourceTitle "playchess.com"]
[Source "ChessBase"]
[SourceQuality "1"]
[TimeControl "40/5400+30:1800+30"]

1. d4 {[%emt 0:00:00]} Nf6 {[%emt 0:00:00]} 2. Bg5 {[%emt 0:00:19]} e6 {[%emt 0:00:02]} 3. Nf3 {[%emt 0:01:51]} d5 {[%emt 0:00:58]} 4. e3 {[%emt 0:00:39]} c5 {[%emt 0:01:17]} 5. Nbd2 {[%emt 0:03:56]} Nc6 {[%emt 0:01:57]} 6. c3 {[%emt 0:01:17]} Bd7 {[%emt 0:03:19]} 7. Bd3 {[%emt 0:02:44]} c4 {[%emt 0:02:55]} 8. Bc2 {[%emt 0:00:03]} Be7 {[%emt 0:02:03]} 9. O-O {[%emt 0:01:05]} O-O {[%emt 0:00:43]} 10. Re1 {[%emt 0:01:13]} a6 {[%emt 0:12:29]} 11. a4 {[%emt 0:05:11]} Ne8 {[%emt 0:07:50]} 12. Bxe7 {[%emt 0:00:51]} Qxe7 {[%emt 0:00:06]} 13. e4 {[%emt 0:00:17]} Qd8 {[%emt 0:02:28]} 14. e5 {[%emt 0:02:07]} f6 {[%emt 0:04:15]} 15. Nf1 {[%emt 0:03:42]} b5 {[%emt 0:07:23]} 16. axb5 {[%emt 0:06:26]} axb5 {[%emt 0:00:23]} 17. Rxa8 {[%emt 0:00:17]} Qxa8 {[%emt 0:00:15]} 18. exf6 {[%emt 0:00:27]} Nxf6 {[%emt 0:00:33]} 19. Ng3 {[%emt 0:01:07]} b4 {[%emt 0:16:01]} 20. Ng5 {[%emt 0:07:10]} b3 {[%emt 0:04:10]} 21. Bb1 {[%emt 0:01:01]} Qe8 {[%emt 0:07:00]} 22. Qe2 {[%emt 0:06:07]} Nd8 {[%emt 0:01:43]} 23. h3 {[%emt 0:08:11]} h6 {[%emt 0:07:17]} 24. Nf3 {[%emt 0:00:31]} Nh5 {[%emt 0:03:49]} 25. Ne5 {[%emt 0:02:41]} Nf4 {[%emt 0:01:02]} 26. Qg4 {[%emt 0:01:36]} Nc6 {[%emt 0:03:01]} 27. Nxc6 {[%emt 0:08:12]} Bxc6 {[%emt 0:00:21]} 28. Re3 {[%emt 0:02:06]} Bd7 {[%emt 0:03:43]} 29. Qh4 {[%emt 0:06:58]} Rf6 {[%emt 0:01:25]} 30. Ne2 {[%emt 0:01:39]} Ng6 {[%emt 0:00:19]} 31. Qg3 {[%emt 0:00:58]} Ne7 {[%emt 0:00:59]} 32. Rf3 {[%emt 0:02:23]} Rxf3 {[%emt 0:00:17]} 33. Qxf3 {[%emt 0:00:13]} Qf7 {[%emt 0:00:53]} 34. Qg3 {[%emt 0:01:15]} Qf8 {[%emt 0:02:19]} 35. Nf4 {[%emt 0:03:20]} Nf5 {[%emt 0:01:13]} 36. Qg6 {[%emt 0:01:08]} Nh4 {[%emt 0:01:51]} 37. Qg4 {[%emt 0:07:14]} e5 {[%emt 0:01:08]} 38. Qxd7 {[%emt 0:01:17]} exf4 {[%emt 0:00:46]} 39. Qxd5+ {[%emt 0:00:26]} Qf7 {[%emt 0:00:11]} 40. Qd8+ {[%emt 0:00:23]} Qf8 {[%emt 0:00:31]} 41. Qxh4 {[%emt 0:30:15]} Qe8 {[%emt 0:30:27]} 42. Kf1 {[%emt 0:00:57]} 1-0

[Event "FIDE Open Sachove Univerzity QCC"]
[Site "Ceske Budejovice"]
[Date "2020.07.03"]
[Round "3.28"]
[White "Kral, Ladislav"]
[Black "Gorej, Jan"]
[Result "1-0"]
[ECO "C29"]
[WhiteElo "1493"]
[BlackElo "1247"]
[Annotator "NA"]
[PlyCount "83"]
[EventDate "2020.07.01"]
[EventType "swiss"]
[EventCountry "CZE"]
[SourceTitle "playchess.com"]
[Source "ChessBase"]
[SourceQuality "1"]
[TimeControl "40/5400+30:1800+30"]

1. e4 {[%emt 0:00:00]} e5 {[%emt 0:03:35]} 2. Nc3 {[%emt 0:02:15]} Nf6 {[%emt 0:06:59]} 3. f4 {[%emt 0:00:14]} Nc6 {[%emt 0:01:49]} 4. fxe5 {[%emt 0:00:08]} Nxe5 {[%emt 0:00:30]} 5. d4 {[%emt 0:00:07]} Nc6 {[%emt 0:01:53]} 6. e5 {[%emt 0:00:31]} Ng8 {[%emt 0:00:34]} 7. Nf3 {[%emt 0:00:23]} d5 {[%emt 0:02:17]} 8. Bb5 {[%emt 0:08:22]} Bb4 {[%emt 0:02:57]} 9. O-O {[%emt 0:01:11]} Nge7 {[%emt 0:04:31]} 10. Bg5 {[%emt 0:03:52]} O-O {[%emt 0:06:03]} 11. Bd3 {[%emt 0:11:18]} h6 {[%emt 0:07:11]} 12. Bh4 {[%emt 0:09:17]} Bg4 {[%emt 0:02:24]} 13. Be2 {[%emt 0:05:41]} Qd7 {[%emt 0:01:28]} 14. Bf2 {[%emt 0:04:45]} Ng6 {[%emt 0:11:40]} 15. Be3 {[%emt 0:05:01]} Nce7 {[%emt 0:05:55]} 16. Nd2 {[%emt 0:03:30]} Be6 {[%emt 0:02:07]} 17. Bd3 {[%emt 0:03:36]} Nf5 {[%emt 0:08:39]} 18. Qe1 {[%emt 0:04:36]} Nxe3 {[%emt 0:01:26]} 19. Qxe3 {[%emt 0:00:08]} Rac8 {[%emt 0:01:03]} 20. Ne2 {[%emt 0:01:48]} Be7 {[%emt 0:06:51]} 21. Nf3 {[%emt 0:02:17]} c5 {[%emt 0:05:28]} 22. c3 {[%emt 0:00:49]} c4 {[%emt 0:01:47]} 23. Bc2 {[%emt 0:00:15]} f5 {[%emt 0:01:23]} 24. Nf4 {[%emt 0:02:35]} Nxf4 {[%emt 0:02:57]} 25. Qxf4 {[%emt 0:00:21]} g5 {[%emt 0:01:16]} 26. Qc1 {[%emt 0:04:10]} Kg7 {[%emt 0:04:11]} 27. Qe1 {[%emt 0:00:52]} g4 {[%emt 0:00:53]} 28. Nd2 {[%emt 0:02:02]} h5 {[%emt 0:00:18]} 29. Qe2 {[%emt 0:03:01]} Bh4 {[%emt 0:01:18]} 30. g3 {[%emt 0:00:35]} Bg5 {[%emt 0:02:12]} 31. Rf2 {[%emt 0:01:51]} Rh8 {[%emt 0:00:12]} 32. Raf1 {[%emt 0:01:26]} Rcf8 {[%emt 0:00:31]} 33. b3 {[%emt 0:02:44]} b5 {[%emt 0:00:10]} 34. b4 {[%emt 0:04:29]} Rf7 {[%emt 0:00:20]} 35. h3 {[%emt 0:01:11]} h4 {[%emt 0:01:34]} 36. hxg4 {[%emt 0:03:04]} hxg3 {[%emt 0:00:02]} 37. Rg2 {[%emt 0:01:28]} Rh3 {[%emt 0:00:12]} 38. gxf5 {[%emt 0:00:51]} Bxf5 {[%emt 0:02:26]} 39. Bxf5 {[%emt 0:05:00]} Rxf5 {[%emt 0:00:03]} 40. e6 {[%emt 0:01:17]} Rxf1+ {[%emt 0:02:21]} 41. Nxf1 {[%emt 0:30:55]} Qd6 {[%emt 0:04:10]} 42. Qg4 {[%emt 0:00:00]} 1-0

[Event "FIDE Open Sachove Univerzity QCC"]
[Site "Ceske Budejovice"]
[Date "2020.07.03"]
[Round "3.29"]
[White "Finek, Vaclav"]
[Black "Bara, Jan"]
[Result "1/2-1/2"]
[ECO "C01"]
[WhiteElo "2210"]
[BlackElo "1128"]
[Annotator "ChessBase"]
[PlyCount "62"]
[EventDate "2020.07.01"]
[EventType "swiss"]
[EventCountry "CZE"]
[SourceTitle "playchess.com"]
[Source "ChessBase"]
[SourceQuality "1"]
[TimeControl "40/5400+30:1800+30"]

1. e4 {[%emt 0:01:44]} e6 {[%emt 0:00:00]} 2. d4 {[%emt 0:00:06]} d5 {[%emt 0:00:06]} 3. exd5 {[%emt 0:00:09]} exd5 {[%emt 0:00:02]} 4. Bd3 {[%emt 0:00:14]} Nf6 {[%emt 0:00:17]} 5. h3 {[%emt 0:00:21]} c5 {[%emt 0:00:14]} 6. dxc5 {[%emt 0:00:59]} Bxc5 {[%emt 0:00:11]} 7. Nf3 {[%emt 0:00:16]} Nc6 {[%emt 0:00:21]} 8. O-O {[%emt 0:00:06]} O-O {[%emt 0:00:12]} 9. c3 {[%emt 0:05:22]} Be6 {[%emt 0:07:56]} 10. Bg5 {[%emt 0:01:40]} h6 {[%emt 0:13:55]} 11. Bh4 {[%emt 0:01:01]} g5 {[%emt 0:07:21]} 12. Bg3 {[%emt 0:04:12]} Ne4 {[%emt 0:02:33]} 13. Bxe4 {[%emt 0:28:09]} dxe4 {[%emt 0:00:40]} 14. Ne5 {[%emt 0:00:09]} Nxe5 {[%emt 0:01:03]} 15. Bxe5 {[%emt 0:00:03]} Qxd1 {[%emt 0:00:25]} 16. Rxd1 {[%emt 0:00:03]} Rad8 {[%emt 0:00:15]} 17. Na3 {[%emt 0:25:49]} e3 {[%emt 0:07:01]} 18. fxe3 {[%emt 0:00:52]} Bxe3+ {[%emt 0:00:07]} 19. Kh2 {[%emt 0:09:31]} Rd5 {[%emt 0:03:52]} 20. Rxd5 {[%emt 0:01:44]} Bxd5 {[%emt 0:00:30]} 21. Nc2 {[%emt 0:00:36]} Bb6 {[%emt 0:06:36]} 22. Bd4 {[%emt 0:01:36]} Re8 {[%emt 0:01:49]} 23. Bxb6 {[%emt 0:01:25]} axb6 {[%emt 0:01:36]} 24. Nd4 {[%emt 0:00:26]} Re3 {[%emt 0:03:29]} 25. Rd1 {[%emt 0:05:56]} Bxa2 {[%emt 0:07:11]} 26. Rd2 {[%emt 0:00:37]} Bb1 {[%emt 0:01:47]} 27. Kg1 {[%emt 0:01:16]} Bg6 {[%emt 0:01:56]} 28. Kf2 {[%emt 0:00:24]} Re5 {[%emt 0:05:19]} 29. Kf3 {[%emt 0:01:14]} Be4+ {[%emt 0:01:52]} 30. Kf2 {[%emt 0:00:40]} Bg6 {[%emt 0:00:30]} 31. Kf3 {[%emt 0:00:36]} Be4+ {[%emt 0:00:53]} 1/2-1/2

[Event "FIDE Open Sachove Univerzity QCC"]
[Site "Ceske Budejovice"]
[Date "2020.07.09"]
[Round "4.1"]
[White "Rychlik, Zdenek"]
[Black "Svanda, Adam"]
[Result "0-1"]
[ECO "B01"]
[WhiteElo "1701"]
[BlackElo "1870"]
[Annotator "NA RC"]
[PlyCount "106"]
[EventDate "2020.07.01"]
[EventType "swiss"]
[EventCountry "CZE"]
[TimeControl "40/5400+30:1800+30"]

1. e4 {[%emt 0:00:00]} d5 {[%emt 0:00:00]} 2. exd5 {[%emt 0:00:00]} Qxd5 {[%emt 0:00:00]} 3. Nc3 {[%emt 0:00:40]} Qd6 {[%emt 0:00:00]} 4. d4 {[%emt 0:00:45]} Nf6 {[%emt 0:00:18]} 5. h3 {[%emt 0:01:36]} c6 {[%emt 0:00:31]} 6. Nf3 {[%emt 0:00:10]} Bf5 {[%emt 0:00:27]} 7. Bd3 {[%emt 0:00:53]} Bxd3 {[%emt 0:00:36]} 8. Qxd3 {[%emt 0:00:34]} Nbd7 {[%emt 0:01:33]} 9. Be3 {[%emt 0:03:42]} e6 {[%emt 0:02:48]} 10. O-O {[%emt 0:03:43]} Be7 {[%emt 0:02:29]} 11. Rad1 {[%emt 0:03:36]} O-O {[%emt 0:00:55]} 12. Qd2 {[%emt 0:02:58]} Qc7 {[%emt 0:01:55]} 13. a3 {[%emt 0:02:47]} Bd6 {[%emt 0:01:24]} 14. Rfe1 {[%emt 0:00:22]} Rfe8 {[%emt 0:03:51]} 15. Qc1 {[%emt 0:01:26]} Rad8 {[%emt 0:01:47]} 16. Ne2 {[%emt 0:04:22]} c5 {[%emt 0:04:24]} 17. c4 {[%emt 0:03:31]} Nb6 {[%emt 0:04:53]} 18. b3 {[%emt 0:01:32]} a6 {[%emt 0:03:20]} 19. dxc5 {[%emt 0:09:52]} Bxc5 {[%emt 0:00:13]} 20. Bxc5 {[%emt 0:03:22]} Qxc5 {[%emt 0:00:10]} 21. Ng3 {[%emt 0:00:33]} h6 {[%emt 0:07:12]} 22. a4 {[%emt 0:04:55]} Nbd7 {[%emt 0:07:03]} 23. Ne4 {[%emt 0:02:59]} Nxe4 {[%emt 0:01:21]} 24. Rxe4 {[%emt 0:00:09]} Nf6 {[%emt 0:00:23]} 25. Re3 {[%emt 0:04:24]} Rd6 {[%emt 0:04:02]} 26. Rxd6 {[%emt 0:04:18]} Qxd6 {[%emt 0:00:08]} 27. Re2 {[%emt 0:04:32]} Rd8 {[%emt 0:02:40]} 28. Rd2 {[%emt 0:02:28]} Qb6 {[%emt 0:00:29]} 29. Qc3 {[%emt 0:01:36]} Ne4 {[%emt 0:02:31]} 30. Rxd8+ {[%emt 0:00:02]} Qxd8 {[%emt 0:00:14]} 31. Qd4 {[%emt 0:03:03]} Qxd4 {[%emt 0:00:16]} 32. Nxd4 {[%emt 0:00:08]} Nc5 {[%emt 0:00:09]} 33. f4 {[%emt 0:01:15]} a5 {[%emt 0:08:13]} 34. Kf2 {[%emt 0:01:56]} f6 {[%emt 0:02:29]} 35. Ke3 {[%emt 0:00:31]} e5 {[%emt 0:00:31]} 36. fxe5 {[%emt 0:00:00]} fxe5 {[%emt 0:00:18]} 37. Nf3 {[%emt 0:00:01]} Nxb3 {[%emt 0:00:48]} 38. Nxe5 {[%emt 0:00:00]} Nc5 {[%emt 0:00:59]} 39. Kd4 {[%emt 0:00:57]} Nxa4 {[%emt 0:01:08]} 40. c5 {[%emt 0:00:30]} Nb2 {[%emt 0:09:19]} 41. Kc3 {[%emt 0:35:06]} Nd1+ {[%emt 0:30:11]} 42. Kb3 {[%emt 0:00:03]} Ne3 {[%emt 0:00:14]} 43. g4 {[%emt 0:01:51]} Nd5 {[%emt 0:02:46]} 44. Ka4 {[%emt 0:05:01]} Kf8 {[%emt 0:03:18]} 45. Kxa5 {[%emt 0:00:46]} Ke7 {[%emt 0:00:10]} 46. Kb5 {[%emt 0:00:52]} Ke6 {[%emt 0:00:49]} 47. Nf3 {[%emt 0:04:17]} Nf4 {[%emt 0:01:09]} 48. Nd4+ {[%emt 0:03:33]} Kd5 {[%emt 0:00:33]} 49. Nf5 {[%emt 0:00:10]} Nxh3 {[%emt 0:02:01]} 50. Nxg7 {[%emt 0:01:13]} Nf2 {[%emt 0:00:14]} 51. Nh5 {[%emt 0:00:43]} Nxg4 {[%emt 0:01:42]} 52. Kb6 {[%emt 0:00:25]} Ne5 {[%emt 0:01:57]} 53. Nf4+ {[%emt 0:03:38]} Kc4 {[%emt 0:00:22]} 0-1

[Event "FIDE Open Sachove Univerzity QCC"]
[Site "Ceske Budejovice"]
[Date "2020.07.04"]
[Round "4.1"]
[White "Skalicky, Jindrich"]
[Black "Trcka, Bohdan"]
[Result "1/2-1/2"]
[ECO "C41"]
[WhiteElo "1165"]
[BlackElo "1528"]
[Annotator "NA"]
[PlyCount "107"]
[EventDate "2020.07.01"]
[EventType "swiss"]
[EventCountry "CZE"]
[SourceTitle "playchess.com"]
[Source "ChessBase"]
[SourceQuality "1"]
[TimeControl "40/5400+30:1800+30"]

1. e4 {[%emt 0:00:00]} e5 {[%emt 0:32:17]} 2. Nf3 {[%emt 0:00:00]} d6 {[%emt 0:00:05]} 3. Bc4 {[%emt 0:00:00]} Be6 {[%emt 0:00:17]} 4. Bxe6 {[%emt 0:00:00]} fxe6 {[%emt 0:00:04]} 5. d4 {[%emt 0:00:12]} exd4 {[%emt 0:00:18]} 6. Nxd4 {[%emt 0:00:15]} e5 {[%emt 0:00:20]} 7. Ne6 {[%emt 0:01:04]} Qe7 {[%emt 0:00:24]} 8. Nxf8 {[%emt 0:01:46]} Qxf8 {[%emt 0:00:23]} 9. Qd5 {[%emt 0:03:53]} Nc6 {[%emt 0:00:35]} 10. Qe6+ {[%emt 0:02:57]} Qe7 {[%emt 0:00:14]} 11. Qxe7+ {[%emt 0:00:25]} Ngxe7 {[%emt 0:00:02]} 12. Be3 {[%emt 0:03:13]} O-O-O {[%emt 0:00:19]} 13. O-O {[%emt 0:02:14]} d5 {[%emt 0:00:09]} 14. exd5 {[%emt 0:00:35]} Nxd5 {[%emt 0:00:24]} 15. a3 {[%emt 0:02:50]} Nd4 {[%emt 0:00:30]} 16. Bxd4 {[%emt 0:00:49]} exd4 {[%emt 0:00:01]} 17. Nd2 {[%emt 0:01:24]} Nf6 {[%emt 0:00:34]} 18. Nf3 {[%emt 0:01:52]} Rd5 {[%emt 0:00:48]} 19. Rfd1 {[%emt 0:01:37]} c5 {[%emt 0:00:14]} 20. c3 {[%emt 0:03:15]} dxc3 {[%emt 0:00:14]} 21. bxc3 {[%emt 0:01:00]} Rhd8 {[%emt 0:00:37]} 22. Rxd5 {[%emt 0:00:55]} Rxd5 {[%emt 0:00:02]} 23. Ne1 {[%emt 0:05:56]} Ne4 {[%emt 0:00:14]} 24. Rc1 {[%emt 0:09:23]} Rd2 {[%emt 0:00:31]} 25. f3 {[%emt 0:00:58]} Nd6 {[%emt 0:00:17]} 26. Rb1 {[%emt 0:02:32]} Ra2 {[%emt 0:00:32]} 27. Rd1 {[%emt 0:03:09]} Kc7 {[%emt 0:00:16]} 28. Rd5 {[%emt 0:01:51]} b6 {[%emt 0:00:36]} 29. Rg5 {[%emt 0:02:00]} g6 {[%emt 0:00:07]} 30. h4 {[%emt 0:00:37]} Nf7 {[%emt 0:00:42]} 31. Rg4 {[%emt 0:01:08]} Rxa3 {[%emt 0:00:15]} 32. h5 {[%emt 0:01:50]} Ne5 {[%emt 0:01:12]} 33. Rg5 {[%emt 0:02:17]} Kd6 {[%emt 0:00:10]} 34. f4 {[%emt 0:01:03]} Nf7 {[%emt 0:00:22]} 35. Rg3 {[%emt 0:01:03]} gxh5 {[%emt 0:00:36]} 36. Rg7 {[%emt 0:00:53]} Ke6 {[%emt 0:00:19]} 37. Rxh7 {[%emt 0:00:26]} Rxc3 {[%emt 0:00:05]} 38. Rxh5 {[%emt 0:00:38]} a5 {[%emt 0:00:14]} 39. Kf2 {[%emt 0:01:01]} a4 {[%emt 0:00:12]} 40. Rh3 {[%emt 0:00:49]} Rxh3 {[%emt 0:00:18]} 41. gxh3 {[%emt 0:30:06]} Kf5 {[%emt 0:30:13]} 42. Kf3 {[%emt 0:00:35]} c4 {[%emt 0:00:16]} 43. h4 {[%emt 0:00:40]} b5 {[%emt 0:00:05]} 44. Nc2 {[%emt 0:00:30]} Nd6 {[%emt 0:00:50]} 45. h5 {[%emt 0:00:28]} c3 {[%emt 0:00:28]} 46. h6 {[%emt 0:00:42]} Kg6 {[%emt 0:00:10]} 47. h7 {[%emt 0:00:23]} Kxh7 {[%emt 0:00:05]} 48. Ke3 {[%emt 0:00:16]} Kg6 {[%emt 0:01:28]} 49. Kd3 {[%emt 0:00:41]} Kf5 {[%emt 0:00:11]} 50. Kxc3 {[%emt 0:00:46]} Kxf4 {[%emt 0:00:09]} 51. Kb4 {[%emt 0:01:50]} Ke4 {[%emt 0:00:17]} 52. Na3 {[%emt 0:00:50]} Kd3 {[%emt 0:00:19]} 53. Nxb5 {[%emt 0:00:52]} Nxb5 {[%emt 0:00:07]} 54. Kxa4 {[%emt 0:00:15]} 1/2-1/2